bitfinex-derivatives/quotes_BTCF0:USTF0_20210105
["timestamp","ask_amount","ask_price","bid_price","bid_amount"]
[1609828003771,0.12786,30416.0,30399.0,0.13632608]
[1609828004171,0.12786,30416.0,30394.0,4.7187]
[1609828004870,0.12786,30416.0,30391.0,0.14373]
[1609828005071,4.9084,30414.0,30391.0,0.14373]
[1609828005270,0.13632608,30392.0,30391.0,0.14373]
[1609828005671,0.10888,30408.0,30391.0,0.14373]
[1609828006573,0.10888,30408.0,30387.0,0.0988]
[1609828007173,0.10888,30408.0,30378.0,0.2862]
[1609828007375,0.10888,30408.0,30397.0,0.13632608]
[1609828008375,0.10888,30408.0,30392.0,0.12237]
[1609828009277,0.13632608,30402.0,30394.0,0.13632608]
[1609828013281,0.13632608,30396.0,30394.0,0.13632608]
[1609828013481,0.10888,30408.0,30394.0,0.13632608]
[1609828013882,4.9084,30414.0,30394.0,0.13632608]
[1609828015182,4.9084,30414.0,30392.0,0.12237]
[1609828015382,4.9084,30414.0,30378.0,0.2862]
[1609828015783,4.9084,30414.0,30395.0,0.13632608]
[1609828016183,0.12786,30416.0,30395.0,0.13632608]
[1609828016384,0.70379096,30438.0,30395.0,0.13632608]
[1609828016585,5.3197,30431.0,30395.0,0.13632608]
[1609828016785,5.3197,30431.0,30391.0,0.09842]
[1609828016985,0.39292,30426.0,30391.0,0.09842]
[1609828017686,0.39292,30426.0,30399.0,0.13632608]
[1609828021686,0.13632608,30406.0,30399.0,0.13632608]
[1609828022989,0.13632608,30406.0,30391.0,0.09842]
[1609828023188,0.13632608,30406.0,30382.0,4.9345]
[1609828023689,4.3379,30409.0,30387.0,0.13632608]
[1609828024088,4.3379,30409.0,30387.0,0.28102608]
[1609828025589,4.3379,30409.0,30387.0,0.1447]
[1609828025790,0.13632608,30390.0,30387.0,0.1447]
[1609828025992,4.3379,30409.0,30387.0,0.1447]
[1609828027694,0.13632608,30388.0,30387.0,0.1447]
[1609828027895,4.3379,30409.0,30387.0,0.1447]
[1609828029295,4.3379,30409.0,30384.0,0.13632608]
[1609828029700,0.13632608,30387.0,30384.0,0.13632608]
[1609828030298,0.13632608,30387.0,30372.0,3.8039]
[1609828030698,5.2481,30398.0,30372.0,3.8039]
[1609828031401,0.1402,30402.0,30368.0,2.34011867]
[1609828031599,4.6092,30385.0,30371.0,0.10145]
[1609828031800,0.13632608,30372.0,30371.0,0.10145]
[1609828033302,0.13632608,30372.0,30368.0,2.04531867]
[1609828034103,5.0033,30370.0,30368.0,2.04531867]
[1609828037708,0.13632608,30372.0,30368.0,1.87431867]
[1609828038607,0.09614,30374.0,30368.0,1.87431867]
[1609828039509,0.09614,30374.0,30353.0,2.74046929]
[1609828039911,0.13632608,30354.0,30353.0,2.74046929]
[1609828040512,4.3006,30370.0,30353.0,2.74046929]
[1609828040713,4.3006,30370.0,30348.0,0.13333]
[1609828041814,0.13632608,30349.0,30348.0,0.13333]
[1609828043017,4.9956,30360.0,30348.0,0.13333]
[1609828043819,0.13632608,30349.0,30348.0,0.13333]
[1609828044719,0.13632608,30349.0,30345.0,2.28218505]
[1609828045119,4.9956,30360.0,30345.0,2.28218505]
[1609828045319,4.9956,30360.0,30345.0,0.11738]
[1609828045921,0.13632608,30347.0,30345.0,0.11738]
[1609828048225,4.9956,30360.0,30345.0,0.11738]
[1609828048624,0.10601,30367.0,30345.0,0.11738]
[1609828049226,4.1791,30373.0,30345.0,0.11738]
[1609828049426,0.298,30373.0,30345.0,0.11738]
[1609828049826,0.13632608,30364.0,30363.0,0.13632608]
[1609828050527,0.298,30373.0,30363.0,0.13632608]
[1609828051828,0.298,30373.0,30367.0,0.13632608]
[1609828052031,1.0065,30373.0,30359.0,0.11504]
[1609828052231,0.298,30373.0,30359.0,0.11504]
[1609828052829,3.7457,30372.0,30359.0,0.11504]
[1609828053930,0.13632608,30360.0,30359.0,0.11504]
[1609828054633,3.7457,30372.0,30359.0,0.11504]
[1609828054834,3.7457,30372.0,30360.0,0.11795157]
[1609828055832,0.13632608,30361.0,30360.0,0.11795157]
[1609828057338,3.7457,30372.0,30360.0,0.11795157]
[1609828058034,0.13632608,30361.0,30360.0,0.11795157]
[1609828059335,3.7457,30372.0,30360.0,0.11795157]
[1609828060038,0.13632608,30361.0,30360.0,0.11795157]
[1609828062038,0.298,30373.0,30360.0,0.11795157]
[1609828062840,4.5048,30371.0,30360.0,0.11795157]
[1609828063039,0.298,30373.0,30360.0,0.11795157]
[1609828063239,5.3645,30361.0,30360.0,0.11795157]
[1609828064140,5.50082608,30361.0,30360.0,0.11795157]
[1609828066241,0.13632608,30361.0,30360.0,0.11795157]
[1609828066643,0.13301,30364.0,30360.0,0.11795157]
[1609828067244,0.298,30373.0,30360.0,0.11795157]
[1609828067444,0.298,30373.0,30360.0,3.85165157]
[1609828067643,0.09614,30374.0,30361.0,0.0975]
[1609828067846,0.2889,30388.0,30361.0,0.0975]
[1609828068043,0.15021,30391.0,30361.0,0.0975]
[1609828068243,0.15021,30391.0,30369.0,5.4845]
[1609828068443,0.4939589,30388.0,30370.0,0.0977]
[1609828069245,0.13632608,30391.0,30370.0,0.0977]
[1609828070350,0.13632608,30391.0,30390.0,0.13632608]
[1609828070750,0.70841933,30403.0,30390.0,5.33902608]
[1609828071151,0.2433,30402.0,30390.0,5.2027]
[1609828071653,0.70841933,30403.0,30386.0,0.10603]
[1609828071853,0.70841933,30403.0,30396.0,4.7862]
[1609828072453,0.70841933,30403.0,30402.0,0.13632608]
[1609828073054,0.13632608,30410.0,30402.0,4.15742608]
[1609828073252,0.70810833,30419.0,30402.0,4.15742608]
[1609828073554,0.70880992,30432.0,30402.0,4.15742608]
[1609828073954,0.70880992,30432.0,30402.0,0.13632608]
[1609828074154,0.70880992,30432.0,30412.0,4.0236]
[1609828074355,0.13632608,30413.0,30412.0,4.0236]
[1609828075154,0.09394,30416.0,30412.0,4.0236]
[1609828075356,0.70858984,30434.0,30412.0,4.0236]
[1609828075756,0.70848251,30436.0,30412.0,4.0236]
[1609828075955,0.70848251,30436.0,30409.0,0.13632608]
[1609828076157,0.12666,30436.0,30422.0,5.1274]
[1609828076355,0.12666,30436.0,30416.0,0.1275]
[1609828076556,0.12666,30436.0,30420.0,4.9321]
[1609828076957,0.70822612,30449.0,30420.0,4.9321]
[1609828077157,0.70822612,30449.0,30416.0,0.1275]
[1609828077357,0.80968612,30449.0,30426.0,4.662]
[1609828077557,0.80968612,30449.0,30431.0,0.13632608]
[1609828077757,0.10146,30449.0,30431.0,0.13632608]
[1609828079359,0.70800395,30460.0,30431.0,0.13632608]
[1609828079559,0.70800395,30460.0,30447.0,3.87802608]
[1609828080261,0.70789204,30463.0,30447.0,3.87802608]
[1609828080461,0.70789204,30463.0,30447.0,0.13632608]
[1609828080862,0.70790509,30465.0,30447.0,0.13632608]
[1609828081060,0.70790509,30465.0,30440.0,3.7126]
[1609828081461,0.13632608,30449.0,30445.0,0.13632608]
[1609828082965,0.14108,30451.0,30445.0,0.13632608]
[1609828083166,4.7867,30463.0,30445.0,0.13632608]
[1609828083462,0.13632608,30446.0,30445.0,0.13632608]
[1609828084164,0.13632608,30446.0,30441.0,0.1383]
[1609828085468,0.13632608,30442.0,30441.0,0.1383]
[1609828086066,4.7867,30463.0,30441.0,0.1383]
[1609828086567,0.11365,30465.0,30441.0,0.1383]
[1609828086767,0.98366476,30474.0,30446.0,5.5084]
[1609828086968,0.2825,30474.0,30446.0,5.5084]
[1609828087570,0.13632608,30459.0,30458.0,0.13632608]
[1609828089869,3.98,30472.0,30441.0,0.1383]
[1609828090069,0.11001,30473.0,30436.0,0.2725]
[1609828090270,4.7326,30460.0,30441.0,0.11044]
[1609828091277,4.7326,30460.0,30442.0,0.0986]
[1609828091477,0.13632608,30443.0,30441.0,0.11044]
[1609828092579,0.0995,30442.0,30441.0,0.11044]
[1609828092780,0.0995,30442.0,30441.0,0.20814]
[1609828093182,0.0995,30442.0,30441.0,0.11044]
[1609828093382,0.13632608,30443.0,30441.0,0.11044]
[1609828093585,0.13632608,30443.0,30433.0,0.09443]
[1609828093980,0.13632608,30443.0,30426.0,0.23956608]
[1609828094281,0.0975,30442.0,30426.0,0.23956608]
[1609828094782,0.13632608,30443.0,30426.0,0.23956608]
[1609828095587,0.13632608,30436.0,30426.0,0.23956608]
[1609828095786,0.13632608,30436.0,30427.0,0.0999]
[1609828096683,0.0971,30435.0,30427.0,0.0999]
[1609828097589,0.13134,30449.0,30434.0,0.13632608]
[1609828097790,1.02916827,30476.0,30434.0,0.09872]
[1609828097989,0.85206827,30476.0,30434.0,0.09872]
[1609828098186,0.11001,30473.0,30434.0,0.09872]
[1609828098486,0.11001,30473.0,30436.0,4.4216]
[1609828098885,4.1687,30477.0,30436.0,4.4216]
[1609828099085,4.0707,30477.0,30436.0,4.4216]
[1609828099286,0.0971,30473.0,30436.0,4.4216]
[1609828099486,0.13632608,30462.0,30450.0,0.13632608]
[1609828099886,0.0983,30466.0,30450.0,0.13632608]
[1609828100086,0.0971,30473.0,30455.0,4.5509]
[1609828100486,0.66326943,30479.0,30450.0,0.11776]
[1609828100686,0.66326943,30479.0,30459.0,3.9922]
[1609828100886,0.48416943,30479.0,30459.0,4.0845]
[1609828101486,0.48416943,30479.0,30474.0,0.13632608]
[1609828101685,0.48416943,30479.0,30474.0,0.22860608]
[1609828102588,0.43936943,30479.0,30475.0,0.0989]
[1609828102989,0.42626943,30479.0,30474.0,0.22860608]
[1609828103389,0.41766943,30479.0,30474.0,0.22860608]
[1609828103891,0.0992,30484.0,30474.0,0.22860608]
[1609828104092,0.0992,30484.0,30475.0,0.0982]
[1609828104492,0.85095508,30495.0,30476.0,3.6811]
[1609828104893,4.083,30514.0,30476.0,3.6811]
[1609828104894,0.2836,30513.0,30476.0,3.6811]
[1609828105592,0.13632608,30496.0,30485.0,0.13632608]
[1609828105994,0.0985,30495.0,30485.0,0.13632608]
[1609828106694,0.13632608,30496.0,30485.0,0.13632608]
[1609828107095,0.13632608,30496.0,30485.0,0.24272608]
[1609828107696,0.099,30495.0,30486.0,0.0996]
[1609828108395,0.13632608,30496.0,30486.0,0.0996]
[1609828108595,5.4042,30493.0,30486.0,0.0996]
[1609828108797,0.10423,30495.0,30486.0,0.0996]
[1609828108995,5.381,30487.0,30474.0,0.09228]
[1609828109197,5.49885,30487.0,30461.0,4.4789]
[1609828110197,5.49885,30487.0,30462.0,0.099]
[1609828110597,5.49885,30487.0,30461.0,4.4789]
[1609828111797,0.13632608,30478.0,30461.0,4.4789]
[1609828113802,5.49885,30487.0,30463.0,0.13632608]
[1609828115801,0.13632608,30485.0,30463.0,0.13632608]
[1609828117405,0.13632608,30485.0,30468.0,4.0692]
[1609828117602,0.10423,30495.0,30468.0,4.17031]
[1609828117802,0.13632608,30497.0,30486.0,0.13632608]
[1609828119408,0.13632608,30497.0,30482.0,4.7723]
[1609828121807,0.13632608,30497.0,30486.0,0.13632608]
[1609828123209,0.0987,30496.0,30487.0,0.0995]
[1609828123810,0.0987,30496.0,30493.0,0.13632608]
[1609828124010,0.0987,30496.0,30494.0,0.0997]
[1609828125413,0.073,30496.0,30494.0,0.0997]
[1609828125610,0.0504,30496.0,30494.0,0.0997]
[1609828125811,0.0504,30496.0,30495.0,0.13632608]
[1609828126211,0.13632608,30505.0,30495.0,0.13632608]
[1609828126411,0.13632608,30505.0,30495.0,4.84032608]
[1609828127113,0.85551099,30532.0,30495.0,4.84032608]
[1609828127412,0.0994,30524.0,30495.0,4.84032608]
[1609828127812,0.0994,30524.0,30495.0,4.704]
[1609828128013,0.85551099,30532.0,30494.0,0.0997]
[1609828128214,0.13632608,30532.0,30524.0,0.13632608]
[1609828128613,0.13632608,30532.0,30517.0,0.13363]
[1609828129213,0.6378,30531.0,30517.0,0.13363]
[1609828129413,0.5396,30531.0,30517.0,0.13363]
[1609828130313,0.13632608,30521.0,30517.0,0.13363]
[1609828130513,0.5396,30531.0,30518.0,0.0976]
[1609828130514,0.097,30524.0,30518.0,0.0976]
[1609828131414,0.11186,30536.0,30517.0,0.13363]
[1609828132317,0.13632608,30531.0,30519.0,0.13632608]
[1609828132517,0.0977,30530.0,30518.0,0.0974]
[1609828132916,0.0977,30530.0,30523.0,5.2278]
[1609828133121,0.0977,30530.0,30524.0,0.0991]
[1609828133315,0.0977,30530.0,30524.0,0.24376]
[1609828133724,0.13632608,30531.0,30524.0,0.24376]
[1609828133917,0.0992,30542.0,30524.0,0.24376]
[1609828134719,0.0992,30542.0,30530.0,4.8789]
[1609828135424,0.13632608,30546.0,30530.0,4.8789]
[1609828135621,0.2826,30552.0,30530.0,4.8789]
[1609828135820,0.2826,30552.0,30531.0,0.0982]
[1609828136023,0.2826,30552.0,30531.0,0.24576]
[1609828136521,0.13632608,30545.0,30531.0,0.24576]
[1609828137223,0.13632608,30545.0,30531.0,0.14756]
[1609828137621,0.1408,30546.0,30536.0,3.9601]
[1609828138423,0.27712608,30546.0,30536.0,3.9601]
[1609828139523,0.27712608,30546.0,30531.0,0.14756]
[1609828139724,0.27712608,30546.0,30540.0,0.11795157]
[1609828140527,0.27712608,30546.0,30531.0,0.14756]
[1609828140726,0.27712608,30546.0,30538.0,0.13426]
[1609828142530,0.13632608,30539.0,30538.0,0.13426]
[1609828142729,0.1408,30546.0,30538.0,0.13426]
[1609828143130,0.2826,30552.0,30538.0,0.13426]
[1609828144532,0.13632608,30539.0,30538.0,0.13426]
[1609828145535,0.13632608,30539.0,30531.0,0.14756]
[1609828146036,0.13632608,30539.0,30525.0,4.4086]
[1609828146637,0.13632608,30539.0,30530.0,0.13632608]
[1609828148542,0.13632608,30539.0,30538.0,0.13632608]
[1609828151343,0.13632608,30539.0,30538.0,0.24322608]
[1609828153446,0.13632608,30539.0,30538.0,0.1069]
[1609828155149,0.13632608,30539.0,30531.0,0.14606]
[1609828155351,0.13632608,30539.0,30530.0,0.13632608]
[1609828155550,0.13632608,30539.0,30527.0,5.2843]
[1609828155950,0.13632608,30539.0,30517.0,0.13363]
[1609828156351,0.13632608,30539.0,30511.0,4.7485]
[1609828156551,0.6637,30538.0,30511.0,4.7485]
[1609828156756,0.6637,30538.0,30512.0,0.13632608]
[1609828156950,0.6637,30538.0,30511.0,4.7485]
[1609828158653,0.13632608,30514.0,30513.0,0.13632608]
[1609828159151,0.11702,30528.0,30513.0,0.13632608]
[1609828159554,0.11702,30528.0,30511.0,4.7485]
[1609828160656,0.13632608,30516.0,30507.0,0.13632]
[1609828160855,0.13632608,30516.0,30467.0,0.2802]
[1609828161056,0.24917608,30516.0,30467.0,0.2802]
[1609828161259,0.24917608,30516.0,30481.0,4.0399]
[1609828161457,0.24917608,30516.0,30481.0,4.16912]
[1609828162557,0.24917608,30516.0,30481.0,4.26712]
[1609828162757,0.11285,30516.0,30481.0,4.16912]
[1609828163260,0.11285,30516.0,30501.0,0.13632608]
[1609828164462,4.1376,30513.0,30501.0,0.13632608]
[1609828165266,0.13632608,30502.0,30501.0,0.13632608]
[1609828168362,4.1376,30513.0,30501.0,0.13632608]
[1609828168562,0.11285,30516.0,30501.0,0.13632608]
[1609828168764,0.2851,30527.0,30501.0,0.13632608]
[1609828169264,0.13632608,30521.0,30501.0,0.13632608]
[1609828169665,0.25575608,30521.0,30501.0,0.13632608]
[1609828170966,0.11943,30521.0,30501.0,0.13632608]
[1609828171167,0.97931615,30528.0,30501.0,0.13632608]
[1609828171369,0.97931615,30528.0,30519.0,0.13632608]
[1609828173368,0.97931615,30528.0,30526.0,0.13632608]
[1609828175875,0.97931615,30528.0,30513.0,0.14119]
[1609828176476,0.97931615,30528.0,30503.0,3.9349]
[1609828177377,0.13632608,30527.0,30509.0,0.13632608]
[1609828178480,0.13632608,30527.0,27924.0,0.05]
[1609828178680,4.7309,30524.0,30485.0,5.3155]
[1609828179479,0.13632608,30502.0,30501.0,0.13632608]
[1609828179681,0.13632608,30502.0,30453.0,0.356]
[1609828179879,5.2029,30491.0,30460.0,4.9533]
[1609828180079,0.13632608,30502.0,30456.0,0.2889]
[1609828180279,4.4297,30482.0,30458.0,1.95276595]
[1609828181480,4.4297,30482.0,30477.0,0.13632608]
[1609828181681,4.4297,30482.0,30477.0,0.26040608]
[1609828181881,4.4297,30482.0,30477.0,0.12408]
[1609828182482,0.13632608,30483.0,30477.0,0.12408]
[1609828182882,4.6069,30499.0,30477.0,0.12408]
[1609828183383,4.6069,30499.0,30480.0,0.13632608]
[1609828184785,0.13632608,30501.0,30480.0,0.13632608]
[1609828184982,0.12307,30503.0,30481.0,0.0975]
[1609828185182,0.86918436,30509.0,30481.0,0.0975]
[1609828185383,0.86918436,30509.0,30500.0,0.13632608]
[1609828185783,0.10794,30512.0,30497.0,0.09291]
[1609828186283,0.8696509,30514.0,30497.0,0.09291]
[1609828187384,0.8696509,30514.0,30504.0,0.13632608]
[1609828187584,0.13632608,30516.0,30504.0,0.13632608]
[1609828188382,0.13632608,30516.0,30497.0,0.09291]
[1609828188582,0.23340608,30516.0,30497.0,0.09291]
[1609828188782,0.23340608,30516.0,30477.0,0.12408]
[1609828188982,5.62650608,30516.0,30475.0,2.16324464]
[1609828189483,5.62650608,30516.0,30478.0,0.13632608]
[1609828189484,0.13632608,30506.0,30478.0,0.13632608]
[1609828189683,0.6479,30505.0,30478.0,0.13632608]
[1609828191484,0.13632608,30498.0,30485.0,0.13632608]
[1609828192086,0.13632608,30498.0,30471.0,4.5058]
[1609828193385,0.26485608,30498.0,30471.0,4.5058]
[1609828193586,0.13632608,30492.0,30479.0,0.13632608]
[1609828195088,0.13632608,30492.0,30471.0,4.5058]
[1609828195487,0.12853,30498.0,30475.0,0.13632608]
[1609828195687,0.12853,30498.0,30476.0,0.0992]
[1609828195887,0.09597,30506.0,30485.0,5.0124]
[1609828196087,0.96634569,30516.0,30486.0,0.097]
[1609828197188,0.96294569,30516.0,30486.0,0.097]
[1609828197591,0.13632608,30515.0,30514.0,0.13632608]
[1609828198290,0.13632608,30515.0,30486.0,0.097]
[1609828198489,0.11702,30528.0,30490.0,4.842]
[1609828198690,0.86868019,30536.0,30496.0,4.5587]
[1609828198889,0.86868019,30536.0,30496.0,0.14812]
[1609828199390,0.86868019,30536.0,30502.0,4.9104]
[1609828199590,0.13632608,30535.0,30520.0,0.13632608]
[1609828199789,4.71188608,30535.0,30520.0,0.13632608]
[1609828199990,0.86894208,30534.0,30520.0,0.13632608]
[1609828201193,4.71188608,30535.0,30520.0,0.13632608]
[1609828201391,4.57556,30535.0,30520.0,0.23175608]
[1609828201591,0.13632608,30524.0,30520.0,0.23175608]
[1609828201992,0.13632608,30524.0,30513.0,0.1037]
[1609828202592,0.13632608,30524.0,30501.0,4.3347]
[1609828202796,0.14554,30528.0,30501.0,4.3347]
[1609828202993,0.14554,30528.0,30499.0,0.0984]
[1609828203392,0.14554,30528.0,30509.0,3.8832]
[1609828203592,0.14554,30528.0,30517.0,0.13632608]
[1609828203795,0.27298608,30535.0,30518.0,0.7419]
[1609828204193,0.13666,30535.0,30518.0,0.7419]
[1609828204393,0.13666,30535.0,30517.0,0.24038608]
[1609828204595,0.13666,30535.0,30522.0,4.4661]
[1609828204794,0.2884,30542.0,30522.0,4.4661]
[1609828204996,0.86911131,30549.0,30522.0,4.4661]
[1609828205597,0.13632608,30552.0,30542.0,0.13632608]
[1609828206195,0.86866493,30556.0,30539.0,0.11702]
[1609828206996,0.86866493,30556.0,30539.0,4.45332]
[1609828207595,0.86866493,30556.0,30555.0,0.13632608]
[1609828207796,0.26486493,30556.0,30555.0,5.04802608]
[1609828208195,0.16366493,30556.0,30555.0,5.04802608]
[1609828208395,0.64395725,30559.0,30555.0,5.04802608]
[1609828208597,0.55158783,30570.0,30555.0,5.04802608]
[1609828208796,0.54008783,30570.0,30555.0,5.04802608]
[1609828208997,0.40688783,30570.0,30555.0,5.04802608]
[1609828209195,0.40348783,30570.0,30555.0,5.04802608]
[1609828209395,0.16198783,30570.0,30568.0,4.499]
[1609828209595,1.06568656,30574.0,30569.0,0.13632608]
[1609828209796,0.13632608,30582.0,30569.0,0.13632608]
[1609828210096,0.00662608,30582.0,30569.0,0.13632608]
[1609828210297,0.19337535,30600.0,30569.0,0.13632608]
[1609828210499,0.2763,30606.0,30582.0,4.3539]
[1609828211497,0.13632608,30605.0,30589.0,0.13632608]
[1609828211698,0.2763,30606.0,30589.0,0.13632608]
[1609828211896,0.2763,30606.0,30597.0,4.3455]
[1609828212097,1.54434484,30627.0,30584.0,0.10663]
[1609828212296,1.54434484,30627.0,30603.0,3.9515]
[1609828212496,1.36724484,30627.0,30603.0,3.9515]
[1609828212897,1.36724484,30627.0,30592.0,0.13525]
[1609828213098,1.42737484,30627.0,30592.0,0.13525]
[1609828213297,1.42737484,30627.0,30625.0,5.022]
[1609828213497,1.03517484,30627.0,30625.0,5.022]
[1609828213697,0.43287484,30627.0,30626.0,0.13632608]
[1609828214097,0.25784484,30627.0,30626.0,0.25850608]
[1609828214299,0.00504484,30627.0,30626.0,0.12218]
[1609828214498,2.23458427,30630.0,30626.0,0.12218]
[1609828214699,2.33982897,30662.0,30626.0,0.12218]
[1609828215100,0.5469,30670.0,30636.0,3.7234]
[1609828215298,0.5469,30670.0,30636.0,3.84602]
[1609828215499,0.5469,30670.0,30636.0,0.12262]
[1609828215899,0.48971976,30651.0,30636.0,0.12262]
[1609828216299,0.10304,30658.0,30641.0,4.1964]
[1609828217301,0.10304,30658.0,30657.0,0.13632608]
[1609828218104,0.2721,30670.0,30657.0,0.13632608]
[1609828218306,0.2721,30670.0,30648.0,3.9972]
[1609828218503,0.41092,30670.0,30645.0,0.09118]
[1609828218703,0.41092,30670.0,30653.0,5.0291]
[1609828220205,0.13882,30670.0,30653.0,5.0291]
[1609828220405,0.01201516,30698.0,30653.0,5.0291]
[1609828220606,0.01201516,30698.0,30652.0,0.0929]
[1609828220808,0.10801516,30698.0,30652.0,0.0929]
[1609828221005,0.10801516,30698.0,30656.0,4.776]
[1609828221205,0.10801516,30698.0,30657.0,0.0992]
[1609828221606,0.10801516,30698.0,30652.0,0.0929]
[1609828222006,0.13632608,30683.0,30671.0,4.3191]
[1609828222206,0.23296608,30683.0,30671.0,4.3191]
[1609828222406,0.09664,30683.0,30671.0,4.3191]
[1609828223910,0.09664,30683.0,30652.0,0.0929]
[1609828224110,0.14112,30686.0,30652.0,0.0929]
[1609828224310,0.14112,30686.0,30671.0,4.9934]
[1609828224511,0.14112,30686.0,30671.0,0.10031]
[1609828224710,0.10801516,30698.0,30685.0,4.8055]
[1609828225113,5.4075,30756.0,30685.0,4.8055]
[1609828225312,5.4075,30756.0,30689.0,0.14112]
[1609828225511,5.4075,30756.0,30685.0,4.8055]
[1609828225712,0.12235,30732.0,30685.0,4.8055]
[1609828226919,0.13632608,30721.0,30704.0,0.13632608]
[1609828227116,0.26512608,30721.0,30704.0,0.13632608]
[1609828227317,0.1288,30721.0,30685.0,4.8055]
[1609828228919,0.13632608,30708.0,30707.0,0.13632608]
[1609828229120,0.11347,30712.0,30707.0,0.13632608]
[1609828229319,0.11347,30712.0,30691.0,0.13985]
[1609828231223,0.11347,30712.0,30703.0,0.13632608]
[1609828231721,0.11347,30712.0,30691.0,0.13985]
[1609828233023,0.11347,30712.0,30684.0,0.10406]
[1609828233224,0.13632608,30688.0,30682.0,0.13632608]
[1609828233826,4.3797,30707.0,30671.0,0.10031]
[1609828234025,4.3797,30707.0,30660.0,3.8487]
[1609828234527,4.26623,30707.0,30660.0,3.8487]
[1609828234827,0.11347,30712.0,30668.0,3.7817]
[1609828235027,0.1288,30721.0,30668.0,3.92564]
[1609828235227,0.276,30731.0,30715.0,0.13632608]
[1609828235628,0.276,30731.0,30700.0,5.4149]
[1609828236531,0.276,30731.0,30695.0,0.12888]
[1609828239735,0.276,30731.0,30725.0,0.13632608]
[1609828241741,0.276,30731.0,30730.0,0.13632608]
[1609828242939,0.276,30731.0,30721.0,0.13501]
[1609828243744,0.09414,30745.0,30730.0,0.13632608]
[1609828245645,0.09414,30745.0,30744.0,0.13632608]
[1609828245844,4e-05,30745.0,30744.0,0.13632608]
[1609828247547,0.01193172,30752.0,30744.0,0.13632608]
[1609828247746,0.01193172,30752.0,30751.0,0.13632608]
[1609828248749,0.01193172,30752.0,30728.0,0.13633]
[1609828248951,0.13345172,30752.0,30728.0,0.13633]
[1609828250251,0.13632608,30749.0,30728.0,0.13633]
[1609828250449,0.13632608,30749.0,30721.0,0.13501]
[1609828250648,0.13345172,30752.0,30715.0,5.4374]
[1609828251149,0.12152,30752.0,30715.0,5.4374]
[1609828251950,0.12152,30752.0,30662.0,1.6474356]
[1609828252153,0.12152,30752.0,30728.0,0.13632608]
[1609828252352,0.12152,30752.0,30719.0,0.12848]
[1609828253353,0.12152,30752.0,30699.0,4.3428]
[1609828253554,0.0975,30751.0,30672.0,0.098]
[1609828253754,4.8631,30740.0,30677.0,4.5536]
[1609828253954,4.97841,30740.0,30677.0,4.5536]
[1609828254354,0.13632608,30705.0,30698.0,0.13632608]
[1609828254757,0.12574,30716.0,30673.0,4.8447]
[1609828254956,0.12574,30716.0,30673.0,4.9604]
[1609828255155,0.12574,30716.0,30674.0,0.0989]
[1609828256957,0.12574,30716.0,30715.0,0.13632608]
[1609828257159,0.2753,30739.0,30715.0,0.13632608]
[1609828257758,0.277,30751.0,30715.0,0.13632608]
[1609828258961,0.13632608,30743.0,30739.0,0.13632608]
[1609828259360,0.13632608,30743.0,30725.0,0.12527]
[1609828259564,0.23382608,30743.0,30725.0,0.12527]
[1609828260563,0.277,30751.0,30725.0,0.12527]
[1609828260965,0.277,30751.0,30747.0,0.13632608]
[1609828261166,0.282,30769.0,30725.0,0.12527]
[1609828261374,0.2811,30768.0,30733.0,4.677]
[1609828262775,5.2439,30786.0,30733.0,4.677]
[1609828262974,0.2885,30785.0,30774.0,0.13632608]
[1609828263175,0.14979,30785.0,30742.0,4.0898]
[1609828264569,0.14979,30785.0,30744.0,4.6084]
[1609828264770,9e-05,30785.0,30745.0,0.0965]
[1609828264970,9e-05,30785.0,30784.0,0.13632608]
[1609828265370,0.0973,30845.0,30784.0,0.13632608]
[1609828265572,0.17364828,30859.0,30794.0,3.7117]
[1609828265971,2.03174787,30866.0,30794.0,3.7117]
[1609828266572,0.1771,30871.0,30794.0,3.7117]
[1609828266771,0.1771,30871.0,30814.0,3.8814]
[1609828266971,0.13632608,30846.0,30836.0,0.13632608]
[1609828267170,0.26024608,30846.0,30836.0,0.13632608]
[1609828267370,0.12392,30846.0,30814.0,3.8814]
[1609828267572,0.12392,30846.0,30808.0,0.11308]
[1609828269177,0.13632608,30831.0,30808.0,0.11308]
[1609828269377,0.11263,30831.0,30808.0,0.11308]
[1609828270478,0.09872,30831.0,30808.0,0.11308]
[1609828271879,0.12761,30831.0,30788.0,0.10153]
[1609828272079,0.12761,30831.0,30790.0,4.567]
[1609828272283,0.12761,30831.0,30790.0,4.67671]
[1609828272679,0.12761,30831.0,30790.0,0.10971]
[1609828272879,0.12761,30831.0,30804.0,4.738]
[1609828273182,0.12761,30831.0,30830.0,0.13632608]
[1609828273782,0.01498,30831.0,30804.0,4.86344]
[1609828275186,0.48636859,30862.0,30804.0,4.86344]
[1609828276188,0.13632608,30853.0,30852.0,0.13632608]
[1609828276388,0.23320608,30853.0,30852.0,0.13632608]
[1609828276589,0.23320608,30853.0,30836.0,4.8552]
[1609828277689,0.09688,30853.0,30836.0,4.8552]
[1609828278290,0.09688,30853.0,30852.0,0.13632608]
[1609828278590,5.3524,30894.0,30852.0,0.13632608]
[1609828278791,0.0966,30928.0,30852.0,0.13632608]
[1609828278990,0.0966,30928.0,30854.0,4.4069]
[1609828279192,4.678,30933.0,30854.0,4.4069]
[1609828280293,4.678,30933.0,30899.0,0.13632608]
[1609828280494,2.65735677,30962.0,30849.0,0.13148]
[1609828280693,2.65735677,30962.0,30871.0,4.1333]
[1609828280897,0.0962,30964.0,30871.0,4.1333]
[1609828282295,2.66694959,30970.0,30925.0,0.13632608]
[1609828282296,0.13632608,30944.0,30925.0,0.13632608]
[1609828282495,0.48534758,30927.0,30865.0,0.14032]
[1609828282695,0.13856,30927.0,30865.0,0.14032]
[1609828282895,0.09451,30942.0,30898.0,3.8174]
[1609828283094,0.09451,30942.0,30898.0,0.13633]
[1609828283294,0.00659797,30970.0,30915.0,5.2592]
[1609828283497,0.00659797,30970.0,30916.0,0.0984]
[1609828283696,0.00659797,30970.0,30925.0,4.895]
[1609828283894,0.00659797,30970.0,30925.0,5.00074]
[1609828284696,0.00659797,30970.0,30954.0,0.13632608]
[1609828285299,0.00659797,30970.0,30934.0,0.09261]
[1609828285496,0.09854797,30970.0,30934.0,0.09261]